bitfinex/quotes_SOLUSD_20250930
["timestamp","ask_amount","ask_price","bid_price","bid_amount"]
[1759250123899,21.71034934,204.86,204.84,35.36]
[1759250124197,21.71034934,204.86,204.81,4.88254654]
[1759250124198,20.0,204.86,204.81,4.88254654]
[1759250124413,20.0,204.86,204.83,35.86]
[1759250126320,20.0,204.88,204.83,40.7419425]
[1759250126498,21.71034934,204.88,204.83,40.7419425]
[1759250126694,20.0,204.9,204.83,40.7419425]
[1759250126997,21.71034934,204.9,204.83,35.86]
[1759250127212,21.71034934,204.86,204.75,5.57397985]
[1759250127415,20.0,204.86,204.76,36.08432314]
[1759250128420,20.0,204.86,204.78,0.28432314]
[1759250129735,24.88092077,204.88,204.78,0.28432314]
[1759250130508,24.88092077,204.88,204.8,0.28432314]
[1759250130708,24.88092077,204.88,204.81,35.76]
[1759250131015,24.88092077,204.88,204.82,0.28432314]
[1759250131604,20.0,204.88,204.82,0.28432314]
[1759250131811,20.0,204.92,204.82,0.28432314]
[1759250132702,24.88003939,204.92,204.83,17.08734071]
[1759250133034,20.0,204.92,204.83,17.08734071]
[1759250133414,20.0,204.94,204.84,0.14216157]
[1759250133622,20.0,204.93,204.84,0.28432314]
[1759250134022,20.0,204.93,204.85,0.69]
[1759250134217,20.0,204.93,204.87,0.28432314]
[1759250134527,4.87942848,204.95,204.88,4.88090589]
[1759250134724,21.71034934,204.96,204.88,4.88090589]
[1759250134725,20.0,204.96,204.89,0.28432314]
[1759250135713,37.07652933,204.96,204.89,0.28432314]
[1759250136033,37.07652933,204.96,204.9,35.74]
[1759250136034,20.0,204.93,204.9,35.74]
[1759250136533,20.68,204.93,204.9,35.74]
[1759250136836,25.55984795,204.93,204.9,35.74]
[1759250137040,5.55984795,204.93,204.9,35.74]
[1759250137328,25.55984795,204.93,204.9,35.74]
[1759250137746,20.0,204.91,204.9,35.74]
[1759250137944,20.68,204.91,204.9,35.74]
[1759250138311,20.0,204.89,204.87,35.72]
[1759250138614,20.68,204.89,204.87,35.72]
[1759250138817,4.88090589,204.88,204.87,35.72]
[1759250139338,24.88068589,204.89,204.87,35.72]
[1759250141955,20.0,204.89,204.87,35.72]
[1759250142157,24.88068374,204.89,204.87,35.72]
[1759250142887,20.0,204.91,204.87,35.72]
[1759250143155,20.0,204.93,204.87,40.60113451]
[1759250143363,20.0,204.93,204.87,41.29113451]
[1759250143538,20.0,204.93,204.87,40.60113451]
[1759250144057,20.0,204.96,204.88,0.97432314]
[1759250144259,20.0,204.96,204.89,0.69]
[1759250144450,0.68,204.97,204.89,0.69]
[1759250144631,20.0,204.96,204.89,0.69]
[1759250144834,24.87912145,204.96,204.9,0.28432314]
[1759250145243,0.68,204.97,204.91,0.69]
[1759250145443,0.68,204.97,204.92,35.64]
[1759250145650,5.55880711,204.97,204.92,36.33]
[1759250146450,5.55880711,204.97,204.92,35.64]
[1759250146768,0.68,204.96,204.92,35.64]
[1759250147061,0.68,204.96,204.85,0.69]
[1759250147062,20.0,204.91,204.85,0.69]
[1759250147243,0.68,204.9,204.86,29.2]
[1759250147447,20.8,204.88,204.8,0.69]
[1759250147647,20.8,204.88,204.81,35.64]
[1759250147842,20.0,204.84,204.81,35.64]
[1759250148043,0.68,204.87,204.81,36.33]
[1759250148243,20.0,204.88,204.82,0.69]
[1759250148755,20.0,204.88,204.82,0.83216157]
[1759250149344,20.0,204.88,204.84,0.28432314]
[1759250149556,20.68,204.88,204.84,0.28432314]
[1759250149865,20.0,204.88,204.84,0.97432314]
[1759250150049,20.68,204.88,204.84,5.16604342]
[1759250150756,20.0,204.88,204.84,5.16604342]
[1759250151262,20.68,204.88,204.84,5.16604342]
[1759250151641,20.0,204.88,204.84,5.16604342]
[1759250151838,4.88086246,204.89,204.84,5.16604342]
[1759250152044,0.68,204.88,204.84,5.16604342]
[1759250154261,20.67,204.9,204.84,5.83604342]
[1759250154667,25.55044143,204.9,204.84,5.16604342]
[1759250154870,20.67,204.9,204.84,5.16604342]
[1759250155061,0.67,204.89,204.82,5.16644898]
[1759250155254,0.67,204.88,204.82,5.16644898]
[1759250157057,4.88076871,204.89,204.83,0.67]
[1759250157366,0.67,204.89,204.83,0.67]
[1759250157569,20.0,204.9,204.83,0.67]
[1759250157775,20.67,204.9,204.83,0.67]
[1759250158075,25.55043175,204.9,204.82,17.37228825]
[1759250158253,0.67,204.89,204.82,17.37228825]
[1759250158974,0.67,204.89,204.83,0.67]
[1759250159169,0.67,204.89,204.85,0.28432314]
[1759250159476,0.67,204.89,204.86,35.48]
[1759250159972,24.88043175,204.9,204.86,35.48]
[1759250160180,20.67,204.88,204.86,35.48]
[1759250160386,0.67,204.87,204.86,35.48]
[1759250164575,5.55114414,204.87,204.86,35.48]
[1759250166069,0.67,204.87,204.86,35.48]
[1759250167183,5.55066767,204.89,204.86,35.48]
[1759250167384,33.91142303,204.9,204.86,35.48]
[1759250167385,20.0,204.9,204.86,35.48]
[1759250167564,0.67,204.89,204.86,35.48]
[1759250167963,0.67,204.88,204.86,35.48]
[1759250168403,20.67,204.94,204.87,0.67]
[1759250168693,43.73899861,205.04,204.87,0.95432314]
[1759250168694,0.67,204.97,204.87,0.95432314]
[1759250168880,0.67,204.96,204.88,0.67]
[1759250169271,0.67,204.96,204.9,0.28432314]
[1759250169471,0.67,204.96,204.92,0.28432314]
[1759250169802,0.67,204.98,204.92,0.28432314]
[1759250170284,2.38034934,204.98,204.92,0.28432314]
[1759250170475,0.67,204.98,204.92,0.28432314]
[1759250171382,0.67,204.98,204.92,5.16420902]
[1759250171874,20.0,204.99,204.92,5.16420902]
[1759250172195,20.0,204.99,204.93,0.27]
[1759250173172,0.67,205.02,204.93,0.27]
[1759250173379,0.67,205.02,204.95,0.28432314]
[1759250173681,20.0,205.03,204.97,0.28432314]
[1759250173892,20.67,205.06,204.98,0.27]
[1759250174575,20.67,205.06,205.0,0.28432314]
[1759250174992,0.67,205.06,205.0,0.28432314]
[1759250175300,0.67,205.06,205.02,0.28432314]
[1759250175474,20.0,205.08,205.02,0.28432314]
[1759250175475,20.2,205.09,205.02,0.28432314]
[1759250175675,0.67,205.06,205.02,0.28432314]
[1759250175875,0.67,205.05,205.02,0.28432314]
[1759250176405,20.0,205.08,205.02,0.28432314]
[1759250176406,0.67,205.07,205.02,0.28432314]
[1759250176729,0.2,205.09,205.03,0.27]
[1759250177033,0.2,205.09,205.05,0.28432314]
[1759250177432,0.91,205.09,205.06,4.87662147]
[1759250178130,0.71,205.08,205.05,0.28432314]
[1759250178532,0.2,205.09,205.05,5.16116406]
[1759250178735,0.91,205.09,205.05,5.16116406]
[1759250178920,0.71,205.08,205.05,0.28432314]
[1759250179321,0.2,205.09,205.05,0.28432314]
[1759250179527,0.71,205.08,205.05,0.28432314]
[1759250179724,0.71,205.07,205.05,0.28432314]
[1759250180443,0.71,205.07,205.05,5.16118061]
[1759250180840,0.71,205.07,205.05,0.28432314]
[1759250181443,0.71,205.06,204.99,12.19551383]
[1759250181633,0.71,205.05,205.0,35.38216157]
[1759250181834,0.71,205.04,205.0,35.24]
[1759250182041,1.71034934,205.05,205.01,0.28432314]
[1759250182249,0.71,205.03,205.01,0.14216157]
[1759250182761,0.71,205.03,205.01,0.28432314]
[1759250183428,0.71,205.02,205.01,0.28432314]
[1759250184026,0.71,205.02,205.0,35.24]
[1759250184350,20.0,205.0,204.99,35.24]
[1759250184536,23.37774328,205.0,204.99,35.24]
[1759250184737,20.71,205.0,204.99,35.24]
[1759250186142,23.37774328,205.0,204.99,35.24]
[1759250186546,20.71,205.0,204.99,35.24]
[1759250188053,0.71,205.0,204.99,35.24]
[1759250188768,20.71,205.0,204.99,35.24]
[1759250188970,28.25579206,205.0,204.99,35.24]
[1759250189341,20.71,205.0,204.99,35.24]
[1759250189842,28.25579206,205.0,204.99,35.24]
[1759250194042,25.58804878,205.0,204.99,35.24]
[1759250194342,28.25579206,205.0,204.99,35.24]
[1759250194767,20.0,205.0,204.99,35.24]
[1759250194951,20.71,205.0,204.99,35.24]
[1759250196070,20.0,205.0,204.99,35.24]
[1759250197476,20.0,205.02,204.99,35.24]
[1759250197662,20.71,205.02,204.99,35.24]
[1759250199055,0.71,205.01,204.99,35.24]
[1759250200077,20.71,205.02,204.99,35.24]
[1759250200382,20.0,205.02,204.99,40.11814923]
[1759250200679,24.87713204,205.04,204.99,40.11814923]
[1759250200874,25.58713204,205.04,204.99,35.24]
[1759250201062,0.71,205.03,204.99,35.24]
[1759250201374,23.37774328,205.02,204.99,35.24]
[1759250202677,28.25535208,205.02,204.99,35.24]
[1759250203470,28.25535208,205.02,205.0,35.06]
[1759250203471,0.71,205.01,205.0,35.06]
[1759250203793,24.8776088,205.02,205.0,35.06]
[1759250203999,25.5876088,205.02,205.0,35.06]
[1759250204976,24.8776088,205.02,205.0,35.06]
[1759250205171,0.71,205.01,205.0,35.06]
[1759250205384,3.37774328,205.01,205.0,35.06]
[1759250205802,3.86635854,205.01,205.0,35.06]
[1759250205984,3.37774328,205.01,205.0,35.06]
[1759250206499,8.25555411,205.01,205.0,35.06]
[1759250207296,20.4500812,205.01,204.92,4.87976847]
[1759250207496,20.0,204.98,204.93,35.1]
[1759250207800,0.71,204.97,204.93,35.1]
[1759250207996,20.0,204.98,204.93,35.37]
[1759250208200,20.71,204.98,204.93,35.1]
[1759250208503,20.0,204.98,204.94,0.55432314]
[1759250209013,20.0,204.98,204.94,0.28432314]
[1759250209499,20.71,204.98,204.94,0.28432314]
[1759250209974,25.58860235,204.98,204.94,0.28432314]
[1759250210170,5.58860235,204.98,204.94,0.28432314]
[1759250210403,25.58860235,204.98,204.94,0.28432314]
[1759250210981,20.71,204.98,204.94,5.1636698]
[1759250211175,20.0,204.98,204.95,0.27]
[1759250211400,20.0,205.0,204.95,0.27]
[1759250211710,20.71,205.0,204.94,5.4336698]
[1759250212209,25.58806897,205.0,204.94,5.4336698]
[1759250212387,20.71,205.0,204.94,5.4336698]
[1759250213209,20.0,205.0,204.94,17.3623621]
[1759250213402,0.71,205.01,204.95,0.27]
[1759250213990,24.87767785,205.02,204.95,0.27]
[1759250213991,20.0,205.02,204.97,0.28432314]
[1759250214198,20.71,205.02,204.98,35.04]
[1759250214407,0.71,205.01,204.98,35.04]
[1759250215286,0.71,205.0,204.98,35.04]
[1759250216112,4.87791711,205.01,204.98,35.04]
[1759250216415,0.71,205.0,204.98,35.04]
[1759250216619,0.71,204.99,204.98,35.04]
[1759250217209,3.37774328,204.99,204.98,35.04]
[1759250217423,0.71,204.99,204.98,35.04]
[1759250218427,24.58808769,205.0,204.98,35.04]
[1759250218809,19.71,205.0,204.98,35.04]
[1759250219220,19.71,205.0,204.98,35.71]
[1759250219422,19.71,205.02,204.98,35.71]
[1759250219625,19.71,205.05,204.99,0.95432314]
[1759250220141,24.58691606,205.05,205.01,0.28432314]
[1759250220313,27.25465934,205.05,205.02,35.02]
[1759250220849,0.48861526,205.08,205.02,35.02]
[1759250221011,0.2,205.09,205.03,0.95432314]
[1759250221215,0.2,205.09,205.04,0.67]
[1759250221717,0.91,205.09,205.04,0.67]
[1759250221928,2.66774328,205.06,205.05,35.02]
[1759250222234,4.8768593,205.05,205.03,35.02]
[1759250222440,23.08774328,205.04,205.03,35.02]
[1759250222805,19.71,205.02,204.93,0.67]
[1759250223014,2.66774328,205.0,204.95,0.28432314]
[1759250223224,0.71,205.0,204.95,0.67]
[1759250223422,19.71,205.02,204.96,0.67]
[1759250223728,23.08774328,205.02,204.96,0.67]
[1759250224030,2.66774328,205.01,204.95,0.28432314]
[1759250224240,2.66774328,205.01,204.97,0.28432314]
[1759250224405,3.37774328,205.01,204.98,35.04]
[1759250225041,8.25556155,205.01,204.98,35.04]
[1759250225740,19.71,205.02,204.98,35.04]
[1759250225940,19.71,205.02,204.98,35.71]
[1759250226440,19.71,205.02,204.98,40.58851856]
[1759250227025,27.96531883,205.02,204.98,35.04]
[1759250227545,23.08774328,205.02,204.98,39.91851032]
[1759250227749,20.42,205.02,204.98,39.91851032]
[1759250228524,19.71,205.02,204.98,35.71]
[1759250228721,0.71,205.01,204.98,35.04]
[1759250229626,19.71,205.02,204.98,35.04]
[1759250229948,20.42,205.02,204.98,35.04]
[1759250230252,19.71,205.02,204.98,39.91846587]
[1759250230437,19.71,205.04,204.99,0.95432314]
[1759250230636,19.71,205.04,205.0,0.67]
[1759250230949,24.58711653,205.04,204.99,0.28432314]
[1759250231124,27.96485981,205.04,204.99,0.95432314]
[1759250231526,25.29711653,205.04,204.99,0.95432314]
[1759250232023,25.29711653,205.04,204.99,5.83255224]
[1759250232421,20.42,205.04,204.99,5.83255224]
[1759250232627,20.42,205.04,204.99,5.16255224]
[1759250233062,20.42,205.04,204.99,5.83255224]
[1759250233448,32.99107678,205.07,204.99,5.83255224]
[1759250233449,19.71,205.06,205.0,0.67]
[1759250233656,19.71,205.08,205.0,0.67]
[1759250233868,0.2,205.09,205.0,0.67]
[1759250234070,0.2,205.09,205.02,0.28432314]
[1759250234372,0.2,205.09,205.04,0.28432314]
[1759250234673,0.2,205.09,205.05,0.67]
[1759250234846,0.2,205.09,205.06,0.67]
[1759250235042,0.2,205.09,205.08,0.28432314]
[1759250236162,0.91,205.09,205.07,35.02]
[1759250236362,0.71,205.08,205.07,35.30432314]
[1759250236969,0.2,205.09,205.07,35.30432314]
[1759250237157,0.91,205.09,205.07,35.30432314]
[1759250237876,0.2,205.09,205.07,35.30432314]
[1759250238453,0.85,205.09,205.07,35.30432314]
[1759250238975,0.2,205.09,205.07,35.30432314]
[1759250239179,0.2,205.09,205.08,0.69]
[1759250239368,0.2,205.09,205.07,40.18061444]
[1759250239568,0.2,205.09,205.07,35.30432314]
[1759250241074,0.85,205.09,205.07,35.30432314]
[1759250243173,0.85,205.09,205.07,40.18066576]
[1759250243375,0.2,205.09,205.07,40.18066576]
[1759250244076,0.2,205.09,205.07,40.87066576]
[1759250244284,0.2,205.09,205.08,5.16046903]
[1759250244986,0.2,205.09,205.08,0.28432314]
[1759250245883,0.2,205.09,205.07,35.02]
[1759250246964,0.2,205.09,205.07,39.89631438]
[1759250247169,0.2,205.09,205.08,0.97432314]
[1759250248788,0.2,205.09,205.08,5.85046903]
[1759250251204,0.2,205.09,205.08,5.16046903]
[1759250251684,0.2,205.09,205.08,0.28432314]
[1759250251884,0.89,205.09,205.08,0.28432314]
[1759250252295,0.2,205.09,205.08,0.28432314]
[1759250252501,0.89,205.09,205.07,35.02]
[1759250252711,0.69,205.08,205.07,35.16216157]
[1759250253083,0.2,205.09,205.07,35.30432314]
[1759250253303,0.2,205.09,205.07,40.18068782]
[1759250253607,0.69,205.08,205.07,35.30432314]
[1759250254196,0.2,205.09,205.07,35.30432314]
[1759250254392,2.39627702,205.08,205.01,32.99449172]
[1759250254600,1.70627702,205.04,204.95,12.19768555]
[1759250254799,19.71,205.06,204.95,12.19768555]
[1759250254800,2.39627702,205.03,204.96,35.0]
[1759250254990,7.27371357,205.03,204.97,5.16294644]
[1759250255194,7.27371357,205.03,204.97,4.8786233]
[1759250255385,22.10627702,205.02,204.97,4.8786233]
[1759250255580,0.69,205.01,204.98,0.28432314]
[1759250255786,21.41627702,205.02,204.96,35.0]
[1759250255787,0.69,205.0,204.99,35.0]
[1759250256311,22.10627702,205.02,204.99,35.0]
[1759250256505,0.69,205.01,204.99,35.0]
[1759250256879,0.69,205.01,204.93,38.06]
[1759250256880,0.69,205.0,204.93,38.06]
[1759250257079,20.4,204.99,204.94,35.0]
[1759250257284,0.69,204.98,204.94,35.0]
[1759250257503,19.71,204.99,204.95,0.69]
[1759250257709,19.71,205.01,204.94,35.0]
[1759250257910,19.71,204.99,204.95,0.14216157]
[1759250258214,19.71,204.99,204.95,0.97432314]
[1759250258888,0.69,204.98,204.95,0.28432314]
[1759250259107,0.69,204.98,204.94,35.0]
[1759250259108,0.69,204.97,204.94,35.0]
[1759250259322,0.69,204.96,204.94,35.0]
[1759250259486,0.69,204.96,204.95,0.28432314]
[1759250259687,0.69,204.96,204.94,35.0]
[1759250259887,0.69,204.95,204.94,35.0]
[1759250260086,0.69,204.95,204.94,35.14216157]
[1759250260286,21.41627702,204.97,204.94,35.14216157]
[1759250260507,0.69,204.96,204.94,35.14216157]
[1759250260686,0.69,204.96,204.94,35.0]
[1759250261088,0.69,204.95,204.94,35.0]
[1759250261307,5.56923883,204.95,204.94,35.0]
[1759250261497,25.27923883,204.95,204.94,35.0]
[1759250262596,26.98551585,204.95,204.86,0.14216157]
[1759250262802,19.71,204.92,204.87,35.0]
[1759250262994,19.71,204.92,204.87,35.69]
[1759250263202,20.4,204.92,204.87,40.57098595]
[1759250263802,20.4,204.92,204.88,0.14216157]
[1759250264011,25.27996031,204.92,204.88,0.28432314]
[1759250265719,20.4,204.92,204.88,0.28432314]
[1759250265919,20.4,204.92,204.88,5.16519319]
[1759250267404,0.69,204.91,204.88,5.16519319]
[1759250267600,19.71,204.92,204.88,5.16519319]
[1759250268020,19.71,204.92,204.89,0.69]
[1759250268330,19.71,204.92,204.9,35.0]
[1759250269106,0.48861526,204.97,204.91,0.97432314]
[1759250269107,19.71,204.97,204.91,0.97432314]
[1759250269307,25.27842272,204.99,204.91,0.97432314]
[1759250269507,19.71,204.96,204.91,0.97432314]
[1759250269935,20.4,204.96,204.91,0.97432314]
[1759250270636,0.69,204.96,204.92,4.87995315]
[1759250270839,0.69,204.96,204.94,0.28432314]
[1759250271429,20.4,204.96,204.94,0.28432314]
[1759250271842,0.69,204.95,204.94,0.28432314]
[1759250272419,0.69,204.95,204.93,35.0]
[1759250272620,0.69,204.94,204.93,35.28432314]
[1759250274127,5.56947692,204.94,204.93,35.0]
[1759250274333,5.56947692,204.94,204.88,4.88075938]
[1759250274334,26.98575394,204.94,204.88,4.88075938]
[1759250274645,2.42627702,204.93,204.9,0.28432314]
[1759250274841,0.72,204.92,204.9,0.14216157]
[1759250275047,0.72,204.92,204.9,0.28432314]
[1759250277622,5.59996447,204.92,204.9,0.28432314]
[1759250277827,0.72,204.91,204.9,0.28432314]
[1759250278151,0.72,204.91,204.89,35.0]
[1759250278152,22.13627702,204.91,204.89,35.0]
[1759250278452,0.72,204.9,204.89,35.0]
[1759250280047,26.29649498,204.91,204.89,35.0]
[1759250280234,0.72,204.9,204.89,35.0]
[1759250282055,5.60042947,204.9,204.89,35.0]
[1759250282751,0.72,204.9,204.89,35.0]
[1759250283131,5.60042947,204.9,204.89,35.0]
[1759250283659,0.72,204.9,204.89,35.0]
[1759250284653,5.60042947,204.9,204.89,35.0]
[1759250284859,0.72,204.9,204.89,35.0]
[1759250285570,19.71,204.91,204.89,35.0]
[1759250285738,19.71,204.91,204.89,40.57052385]
[1759250286348,19.71,204.91,204.9,0.69]
[1759250286551,20.8,204.96,204.9,0.97432314]
[1759250286552,19.71,204.93,204.9,0.97432314]
[1759250287539,19.71,204.93,204.9,0.28432314]
[1759250287739,19.71,204.93,204.9,0.97432314]
[1759250288650,19.71,204.93,204.9,5.85465249]
[1759250289467,19.71,204.96,204.91,0.69]
[1759250289659,20.43,204.96,204.93,0.28432314]
[1759250291250,19.71,204.96,204.93,5.16397917]
[1759250291960,19.71,204.96,204.93,5.85397917]
[1759250292164,19.71,204.96,204.93,0.97432314]
[1759250292348,19.71,204.96,204.93,5.16398226]
[1759250292871,20.43,204.96,204.93,0.28432314]
[1759250293378,20.43,204.96,204.93,5.16402879]
[1759250293575,19.71,204.96,204.93,5.16402879]
[1759250293960,20.43,204.96,204.93,5.16402879]
[1759250294489,20.43,204.96,204.93,0.28432314]
[1759250294849,19.71,204.96,204.94,0.69]
[1759250295182,19.71,204.99,204.96,0.28432314]
[1759250295548,0.72,204.98,204.96,0.28432314]
[1759250295749,0.72,204.98,204.86,0.69]
[1759250295750,19.71,204.94,204.86,0.69]
[1759250296057,0.72,204.93,204.87,34.98]
[1759250296253,0.72,204.93,204.88,0.28432314]
[1759250296458,19.71,204.94,204.89,0.69]
[1759250296651,19.71,204.94,204.9,0.69]
[1759250296863,19.71,204.94,204.91,34.98]
[1759250297071,20.43,204.94,204.91,34.98]
[1759250297443,0.67,204.93,204.91,34.98]
[1759250298451,0.67,204.92,204.91,35.26432314]
[1759250298850,20.38,204.94,204.91,35.26432314]
[1759250299155,19.71,204.94,204.91,40.14450047]
[1759250299357,19.71,204.94,204.92,0.28432314]
[1759250299561,20.38,204.94,204.92,0.28432314]
[1759250299873,0.67,204.93,204.92,0.28432314]
[1759250300374,0.67,204.93,204.91,34.98]
[1759250300569,24.58956686,204.94,204.91,34.98]
[1759250300570,0.67,204.92,204.91,34.98]
[1759250300748,19.71,204.94,204.91,35.65]
[1759250300946,19.71,204.96,204.92,0.28432314]
[1759250301149,19.71,204.94,204.89,4.88066714]
[1759250301350,19.71,204.94,204.9,34.98]
[1759250301566,19.71,204.92,204.91,34.98]
[1759250301761,20.38,204.92,204.91,34.98]
[1759250302473,25.25995315,204.92,204.91,34.98]
[1759250303170,20.38,204.92,204.91,34.98]
[1759250303476,25.25995315,204.92,204.91,34.98]
[1759250304187,19.71,204.9,204.83,0.69]
[1759250304475,19.71,204.9,204.86,0.28432314]
[1759250304679,19.71,204.9,204.85,4.88162069]
[1759250304894,19.71,204.9,204.87,0.69]
[1759250305181,19.71,204.92,204.89,0.28432314]
[1759250306370,0.72,204.91,204.89,0.28432314]
[1759250306571,20.43,204.92,204.89,0.28432314]
[1759250307863,0.72,204.91,204.89,0.28432314]
[1759250308061,19.71,204.92,204.89,0.28432314]
[1759250308277,0.72,204.91,204.89,0.28432314]
[1759250308470,24.59002671,204.92,204.89,0.28432314]
[1759250308471,0.72,204.9,204.89,0.28432314]
[1759250309159,0.72,204.9,204.88,34.98]
[1759250309354,20.43,204.89,204.82,12.89532116]
[1759250309681,0.72,204.88,204.83,34.98]
[1759250309979,0.72,204.87,204.83,34.98]
[1759250310180,0.72,204.87,204.83,37.65064539]
[1759250310368,20.43,204.89,204.84,2.67064539]
[1759250310565,0.72,204.88,204.85,0.28432314]
[1759250310884,19.71,204.86,204.85,0.14216157]
[1759250312582,19.71,204.86,204.84,0.28432314]
[1759250313377,0.72,204.85,204.84,0.28432314]
[1759250313889,19.71,204.86,204.84,0.28432314]
[1759250314184,20.43,204.86,204.84,0.28432314]
[1759250314778,3.39064539,204.85,204.8,4.88258031]
[1759250314980,0.72,204.84,204.82,0.14216157]
[1759250315663,24.59145689,204.86,204.82,0.28432314]
[1759250315862,0.72,204.85,204.82,0.28432314]
[1759250316881,19.71,204.86,204.84,0.28432314]
[1759250317079,19.71,204.86,204.85,35.26432314]
[1759250317593,20.43,204.86,204.85,35.26432314]
[1759250317888,19.71,204.86,204.85,35.26432314]
[1759250318087,20.43,204.86,204.85,35.26432314]
[1759250318668,20.43,204.86,204.85,34.98]
[1759250318987,25.3113824,204.86,204.85,34.98]
[1759250319178,20.43,204.86,204.85,34.98]
[1759250319594,19.71,204.86,204.85,34.98]
[1759250319787,19.71,204.86,204.85,35.26432314]
[1759250320084,19.71,204.86,204.85,37.93496853]
[1759250320290,19.71,204.88,204.86,0.28432314]
[1759250320488,19.71,204.88,204.86,2.95496853]
[1759250320701,19.71,204.9,204.87,2.67064539]
[1759250320911,19.71,204.9,204.88,34.98]
[1759250321070,19.71,204.9,204.88,37.65064539]
[1759250321267,19.71,204.9,204.88,34.98]
[1759250321802,19.71,204.9,204.88,37.65064539]
[1759250322300,20.43,204.94,204.89,2.95496853]
[1759250322472,19.71,204.94,204.91,0.28432314]
[1759250322790,20.43,204.94,204.92,34.96]
[1759250322987,19.71,204.94,204.92,34.96]
[1759250323191,20.43,204.94,204.92,34.96]
[1759250323694,19.71,204.94,204.92,34.96]
[1759250323896,20.43,204.94,204.92,34.96]
[1759250324880,0.72,204.93,204.92,34.96]
[1759250325882,5.59971502,204.93,204.92,34.96]
[1759250326478,5.59971502,204.93,204.89,0.28432314]
[1759250326685,19.71,204.86,204.8,12.89655844]
[1759250326980,19.71,204.86,204.83,2.67064539]
[1759250327195,19.71,204.86,204.84,2.95496853]
[1759250327408,19.71,204.86,204.85,34.96]
[1759250328194,24.5913824,204.86,204.85,34.96]
[1759250328394,19.71,204.86,204.85,34.96]
[1759250331600,20.43,204.86,204.85,34.96]
[1759250332596,25.3113824,204.86,204.78,0.69]
[1759250332792,28.47064305,204.86,204.8,2.67064539]
[1759250332993,19.71,204.84,204.81,0.14216157]
[1759250333310,4.88209734,204.83,204.82,34.96]
[1759250334209,19.71,204.84,204.82,34.96]
[1759250334506,20.37,204.84,204.82,34.96]
[1759250338422,19.71,204.84,204.82,34.96]
[1759250339015,20.37,204.84,204.82,34.96]
[1759250340117,19.71,204.86,204.83,0.67]
[1759250340299,19.71,204.86,204.83,2.67064539]
[1759250340499,19.71,204.86,204.84,3.34064539]
[1759250340703,19.71,204.86,204.85,37.63064539]
[1759250340904,19.71,204.86,204.85,34.96]
[1759250341210,19.71,204.88,204.86,0.28432314]
[1759250341521,19.71,204.88,204.86,2.95496853]
[1759250342033,19.71,204.88,204.86,0.28432314]
[1759250343405,20.37,204.88,204.86,0.28432314]
[1759250344636,0.66,204.87,204.85,34.96]
[1759250345326,19.71,204.88,204.85,4.881575]
[1759250345520,20.37,204.88,204.86,34.94]
[1759250345720,19.71,204.88,204.86,34.94]
[1759250345925,19.71,204.88,204.87,0.28432314]
[1759250346125,19.71,204.88,204.87,2.95496853]
[1759250346635,19.71,204.88,204.87,0.28432314]